bitfinex/quotes_SOLUSD_20250410
["timestamp","ask_amount","ask_price","bid_price","bid_amount"]
[1744269505499,97.76292605,115.9,115.86,8.6311]
[1744269506297,106.39112605,115.9,115.86,8.6311]
[1744269508093,106.39112605,115.9,115.85,24.89462605]
[1744269508787,16.26292605,115.89,115.84,43.54497491]
[1744269509001,16.26292605,115.87,115.83,0.063]
[1744269509992,24.89372605,115.87,115.83,0.063]
[1744269510503,16.26292605,115.85,115.83,0.063]
[1744269510711,16.26292605,115.84,115.83,0.063]
[1744269512207,16.26292605,115.85,115.83,0.063]
[1744269513101,42.26292605,115.84,115.83,0.063]
[1744269514011,26.0,115.84,115.83,0.063]
[1744269514207,42.26292605,115.84,115.83,0.063]
[1744269514409,26.0,115.84,115.83,0.063]
[1744269515929,24.89412605,115.86,115.83,0.063]
[1744269518116,16.26292605,115.85,115.83,0.063]
[1744269519427,24.89542605,115.84,115.83,0.063]
[1744269519716,50.89542605,115.84,115.83,0.063]
[1744269520119,51.17974919,115.84,115.83,0.063]
[1744269523309,45.33785698,115.84,115.83,0.063]
[1744269525731,10.42103384,115.82,115.78,0.063]
[1744269525907,91.92103384,115.83,115.78,10.48403384]
[1744269526108,10.42103384,115.82,115.78,0.063]
[1744269527034,19.05543384,115.82,115.78,0.063]
[1744269527646,10.42103384,115.81,115.78,0.063]
[1744269528742,8.6344,115.82,115.78,10.48403384]
[1744269529114,19.05543384,115.82,115.78,0.063]
[1744269532244,8.6344,115.82,115.78,29.1336827]
[1744269535947,90.1337,115.83,115.79,10.42103384]
[1744269536243,100.55473384,115.83,115.78,36.9736827]
[1744269537125,8.6337,115.83,115.8,29.0706827]
[1744269539039,34.6327,115.84,115.81,10.42103384]
[1744269539617,8.71720872,115.85,115.82,29.0706827]
[1744269540026,0.08510872,115.85,115.83,10.42103384]
[1744269540634,0.08510872,115.85,115.82,38.4826827]
[1744269541345,0.08510872,115.85,115.84,10.42103384]
[1744269541519,0.08510872,115.85,115.84,19.05353384]
[1744269541945,0.08510872,115.85,115.84,10.42103384]
[1744269542239,0.08510872,115.85,115.84,19.05353384]
[1744269542625,0.08510872,115.85,115.84,18.64964886]
[1744269543922,91.95103384,115.89,115.84,18.64964886]
[1744269544130,81.53,115.89,115.85,10.42103384]
[1744269544454,91.95103384,115.89,115.85,10.42103384]
[1744269544959,100.58023384,115.89,115.85,10.42103384]
[1744269545341,100.58023384,115.89,115.84,37.7028827]
[1744269546128,10.42103384,115.88,115.84,18.64964886]
[1744269546535,10.42103384,115.87,115.84,18.64964886]
[1744269546858,10.42103384,115.88,115.84,18.64964886]
[1744269547027,8.6303,115.87,115.84,18.64964886]
[1744269547428,8.6298,115.88,115.84,18.64964886]
[1744269547628,8.6298,115.88,115.84,37.7031827]
[1744269549166,100.58013384,115.89,115.84,37.7029827]
[1744269551559,100.58013384,115.89,115.84,29.0706827]
[1744269551856,100.58013384,115.89,115.84,37.7030827]
[1744269552856,100.58013384,115.89,115.84,29.0706827]
[1744269554928,81.53,115.89,115.84,37.7030827]
[1744269555129,81.53,115.89,115.86,18.64964886]
[1744269555350,90.159,115.89,115.86,18.64964886]
[1744269555734,81.53,115.89,115.86,18.64964886]
[1744269556141,81.53,115.89,115.86,29.0706827]
[1744269556542,90.159,115.89,115.86,29.0706827]
[1744269557057,90.159,115.89,115.85,29.0706827]
[1744269557265,90.159,115.89,115.85,37.7021827]
[1744269559441,90.159,115.89,115.86,7.86]
[1744269559648,0.03,115.89,115.86,7.86]
[1744269559851,8.659,115.89,115.86,7.86]
[1744269562053,0.03,115.89,115.86,7.86]
[1744269562376,0.03,115.89,115.87,18.64964886]
[1744269563452,10.45103384,115.89,115.86,7.86]
[1744269563647,10.42103384,115.88,115.83,25.62733384]
[1744269563967,8.6303,115.87,115.84,18.64964886]
[1744269564153,19.05133384,115.87,115.83,18.64964886]
[1744269564541,10.42103384,115.86,115.82,9.432]
[1744269564765,10.42103384,115.86,115.83,18.64964886]
[1744269564966,19.05133384,115.87,115.83,18.64964886]
[1744269565657,10.42103384,115.86,115.82,18.28103384]
[1744269565852,8.6318,115.85,115.82,18.28103384]
[1744269566055,21.5751,115.88,115.82,18.28103384]
[1744269566378,10.42103384,115.86,115.82,26.50964886]
[1744269566677,10.42103384,115.86,115.82,7.86]
[1744269566864,10.42103384,115.86,115.82,26.50964886]
[1744269567066,10.42103384,115.86,115.82,7.86]
[1744269567269,10.42103384,115.85,115.82,7.86]
[1744269567744,8.6318,115.85,115.82,7.86]
[1744269568379,19.05283384,115.85,115.82,7.86]
[1744269569861,18.95283384,115.85,115.82,7.86]
[1744269570267,18.95283384,115.85,115.8,10.42103384]
[1744269570456,10.42103384,115.84,115.8,18.64964886]
[1744269571074,10.42103384,115.81,115.78,0.063]
[1744269571257,10.42103384,115.8,115.78,0.063]
[1744269571773,10.42103384,115.81,115.78,0.063]
[1744269571957,19.05623384,115.81,115.78,0.063]
[1744269575681,10.42103384,115.81,115.78,0.063]
[1744269578685,10.42103384,115.82,115.78,0.063]
[1744269578856,19.05513384,115.82,115.78,0.063]
[1744269579178,10.42103384,115.81,115.78,0.063]
[1744269580755,19.05603384,115.81,115.78,0.063]
[1744269582661,8.6344,115.82,115.78,0.063]
[1744269582866,19.05543384,115.82,115.78,0.063]
[1744269583779,8.6344,115.82,115.78,0.063]
[1744269583983,10.42103384,115.82,115.78,0.063]
[1744269585780,19.05523384,115.82,115.78,0.063]
[1744269586990,10.42103384,115.82,115.78,0.063]
[1744269587475,19.05513384,115.82,115.78,0.063]
[1744269589164,10.42103384,115.81,115.78,0.063]
[1744269591678,19.05513384,115.82,115.78,0.063]
[1744269592885,10.42103384,115.81,115.78,0.063]
[1744269593395,19.05603384,115.81,115.78,0.063]
[1744269593860,10.42103384,115.8,115.78,0.063]
[1744269595389,10.42103384,115.79,115.78,0.063]
[1744269596995,10.70535698,115.79,115.78,0.063]
[1744269597170,19.34165698,115.79,115.78,0.063]
[1744269597683,26.08635711,115.79,115.78,0.063]
[1744269597876,27.72825711,115.79,115.77,0.063]
[1744269598079,92.20535698,115.78,115.77,0.063]
[1744269598276,29.35500584,115.78,115.77,0.0001]
[1744269598587,35.54170584,115.78,115.76,0.063]
[1744269598790,10.70535698,115.77,115.76,0.063]
[1744269599892,37.99280584,115.77,115.76,0.063]
[1744269600087,0.28432314,115.76,115.7,20.30333384]
[1744269600301,36.42103384,115.74,115.7,1.2395]
[1744269600671,36.42103384,115.74,115.7,9.8825]
[1744269601100,26.0,115.74,115.7,9.8825]
[1744269601309,36.42103384,115.74,115.7,9.8825]
[1744269601690,45.06123384,115.74,115.7,9.8825]
[1744269602196,36.42103384,115.74,115.7,9.8825]
[1744269602387,10.42103384,115.73,115.7,1.2395]
[1744269602590,45.06103384,115.74,115.69,33.09093384]
[1744269602895,81.5,115.78,115.74,18.64964886]
[1744269603197,91.92103384,115.78,115.73,18.20103384]
[1744269603784,100.55823384,115.78,115.73,26.84103384]
[1744269604095,100.55823384,115.78,115.73,16.42]
[1744269604691,100.55823384,115.78,115.73,26.84103384]
[1744269605199,19.05893384,115.77,115.73,16.42]
[1744269605899,81.5,115.82,115.75,10.42103384]
[1744269606078,19.05583384,115.81,115.76,10.42103384]
[1744269606398,10.42103384,115.8,115.75,10.42103384]
[1744269606600,10.42103384,115.79,115.74,35.0810827]
[1744269606901,10.42103384,115.79,115.75,18.64964886]
[1744269607094,10.42103384,115.8,115.75,29.0706827]
[1744269607303,19.05683384,115.8,115.75,37.7091827]
[1744269607487,19.05583384,115.81,115.76,10.42103384]
[1744269608401,81.5,115.82,115.77,18.20103384]
[1744269608582,81.5,115.82,115.78,10.42103384]
[1744269608782,19.05453384,115.83,115.78,10.42103384]
[1744269609409,19.05453384,115.83,115.79,27.28564886]
[1744269609589,19.05393384,115.84,115.79,37.7066827]
[1744269610994,36.42103384,115.8,115.76,1.5654]
[1744269611190,10.42103384,115.79,115.76,1.5654]
[1744269611381,10.42103384,115.79,115.75,18.64964886]
[1744269613003,19.05783384,115.79,115.75,18.64964886]
[1744269613797,19.05783384,115.79,115.74,24.21143384]
[1744269614101,10.42103384,115.78,115.74,13.7904]
[1744269614487,91.92103384,115.78,115.74,7.78]
[1744269615032,8.6378,115.77,115.74,7.78]
[1744269616001,10.42103384,115.76,115.72,18.64964886]
[1744269616908,8.6393,115.75,115.72,18.64964886]
[1744269617097,19.06033384,115.75,115.71,32.43944886]
[1744269617286,24.94437603,115.75,115.71,26.42964886]
[1744269617595,16.30507603,115.74,115.71,7.78]
[1744269617989,16.30507603,115.73,115.69,34.95472489]
[1744269618195,16.30507603,115.73,115.69,43.59842489]
[1744269619108,24.94607603,115.73,115.69,43.59842489]
[1744269619401,8.641,115.73,115.69,43.59842489]
[1744269619981,81.5,115.76,115.7,34.95472489]
[1744269620391,8.6396,115.75,115.71,16.30507603]
[1744269620887,24.94467603,115.75,115.7,16.30507603]
[1744269621817,81.5,115.76,115.72,16.30507603]
[1744269622021,90.1385,115.76,115.72,16.30507603]
[1744269622189,90.1385,115.76,115.72,34.95472489]
[1744269622736,97.80507603,115.76,115.72,34.95472489]
[1744269622909,81.5,115.76,115.72,34.95472489]
[1744269623915,81.5,115.76,115.72,43.59592489]
[1744269624209,97.80507603,115.76,115.72,43.59592489]
[1744269624391,81.5,115.76,115.72,43.59592489]
[1744269625812,90.1385,115.76,115.72,43.59592489]
[1744269626103,81.5,115.76,115.72,43.59592489]
[1744269626612,81.5,115.76,115.73,34.95472489]
[1744269626791,16.30507603,115.78,115.73,34.95472489]
[1744269627290,106.44167603,115.79,115.75,18.64964886]
[1744269628015,16.30507603,115.78,115.73,22.39697603]
[1744269628918,16.30507603,115.78,115.73,31.03737603]
[1744269629093,24.94287603,115.77,115.73,27.29004886]
[1744269629292,24.94287603,115.77,115.73,18.64964886]
[1744269629489,24.94287603,115.77,115.72,34.25127603]
[1744269630518,16.30507603,115.76,115.72,17.9462]
[1744269631596,24.94337603,115.77,115.72,34.25127603]
[1744269634420,24.94377603,115.76,115.72,16.4211]
[1744269635321,16.30507603,115.75,115.72,7.78]
[1744269635695,16.30507603,115.75,115.71,18.64964886]
[1744269636398,24.94457603,115.75,115.7,14.9245]
[1744269636609,24.94457603,115.75,115.71,18.64964886]
[1744269637401,19.07504647,115.75,115.7,16.71744647]
[1744269639005,19.07504647,115.75,115.7,25.36034647]
[1744269639813,8.6388,115.76,115.71,37.72689533]
[1744269640023,19.07434647,115.76,115.71,37.72689533]
[1744269640226,91.93554647,115.77,115.72,29.08519533]
[1744269640527,10.43554647,115.78,115.74,29.08519533]
[1744269641001,10.43554647,115.78,115.74,18.64964886]
[1744269641198,19.07184647,115.79,115.75,10.43554647]
[1744269641398,100.57144647,115.8,115.75,10.43554647]
[1744269641927,90.1359,115.8,115.75,19.07434647]
[1744269642120,100.57144647,115.8,115.75,19.07434647]
[1744269643822,100.57144647,115.8,115.76,18.64964886]
[1744269644026,81.5,115.8,115.76,29.08519533]
[1744269644230,8.6644,115.82,115.77,10.43554647]
[1744269644523,19.09994647,115.82,115.77,10.43554647]
[1744269644825,0.03,115.82,115.79,10.43554647]
[1744269645001,10.46554647,115.82,115.78,29.08519533]
[1744269645322,0.03,115.82,115.79,19.07144647]
[1744269645513,0.03,115.82,115.79,8.6359]
[1744269645719,0.03,115.82,115.8,34.93066243]
[1744269646241,0.03,115.82,115.8,18.64964886]
[1744269647760,0.03,115.82,115.8,27.28484886]
[1744269652455,0.03,115.82,115.8,43.56586243]
[1744269652647,0.03,115.82,115.8,27.28484886]
[1744269655364,0.03,115.82,115.8,43.56586243]
[1744269655542,0.03,115.82,115.81,24.02101357]
[1744269656448,0.03,115.82,115.81,32.65581357]
[1744269657157,0.03,115.82,115.81,51.30546243]
[1744269658246,0.03,115.82,115.81,53.12978557]
[1744269659637,0.0001,115.82,115.81,53.12978557]
[1744269659841,0.0001,115.82,115.81,134.32978557]
[1744269660846,0.03,115.85,115.83,0.28432314]
[1744269661155,0.03,115.85,115.84,18.64964886]
[1744269661351,0.03,115.85,115.84,34.93066243]
[1744269661854,0.03,115.85,115.84,43.56316243]
[1744269663058,0.03,115.85,115.84,43.84748557]
[1744269665062,0.03,115.86,115.85,26.94304886]
[1744269665245,0.0001,115.86,115.85,67.52939914]
[1744269665443,0.0001,115.86,115.85,51.24838557]
[1744269665658,0.0001,115.86,115.85,67.52939914]
[1744269665965,0.03,115.89,115.87,18.64964886]
[1744269666267,0.03,115.89,115.88,34.93066243]
[1744269666963,0.03,115.89,115.88,43.56026243]
[1744269667260,0.03,115.89,115.88,37.67711081]
[1744269667837,0.03,115.89,115.88,37.96143395]
[1744269669459,0.03,115.93,115.88,43.80955938]
[1744269669662,0.03,115.93,115.92,34.89563624]
[1744269669867,0.03,115.93,115.92,35.17995938]
[1744269671840,0.03,115.93,115.92,43.80655938]
[1744269672842,0.03,115.93,115.92,43.52223624]
[1744269673559,0.03,115.93,115.92,43.80655938]
[1744269673960,0.03,115.93,115.92,60.05254676]
[1744269674453,0.03,115.93,115.92,27.560572]
[1744269674654,0.03,115.93,115.92,43.80655938]
[1744269677052,0.03,115.93,115.92,43.52223624]
[1744269677375,0.03,115.93,115.92,27.27624886]
[1744269677550,0.03,115.93,115.92,18.64964886]
[1744269685951,0.03,115.93,115.92,43.52223624]
[1744269686150,0.03,115.93,115.92,43.80655938]
[1744269687380,0.03,115.93,115.92,18.64964886]
[1744269687754,0.03,115.93,115.92,34.89563624]
[1744269688053,0.03,115.93,115.92,43.52223624]
[1744269688480,0.03,115.93,115.92,27.27624886]
[1744269688776,0.03,115.93,115.92,43.52223624]
[1744269688970,0.03,115.93,115.92,34.89563624]
[1744269689179,0.03,115.93,115.92,18.64964886]
[1744269689485,0.03,115.93,115.91,7.72]
[1744269689974,0.03,115.93,115.91,23.96598738]
[1744269690477,0.03,115.93,115.92,34.89563624]
[1744269691381,0.03,115.93,115.91,7.72]
[1744269692590,0.03,115.93,115.88,16.3493]
[1744269692792,0.03,115.93,115.88,7.72]
[1744269692793,16.24598738,115.91,115.88,7.72]
[1744269693093,8.6288,115.89,115.86,295.92]
[1744269693278,24.87478738,115.89,115.86,295.92]
[1744269693858,24.87478738,115.89,115.85,7.72]
[1744269694158,16.24598738,115.88,115.85,7.72]
[1744269694887,24.87628738,115.88,115.85,7.72]
[1744269695381,8.6281,115.9,115.86,34.89563624]
[1744269696162,24.87368738,115.91,115.86,34.89563624]
[1744269696563,8.6277,115.91,115.87,16.24598738]
[1744269696770,81.5,115.92,115.88,34.89563624]
[1744269696972,24.90218738,115.93,115.88,43.52443624]
[1744269697174,8.6562,115.93,115.89,24.08598738]
[1744269697458,0.03,115.93,115.9,34.89563624]
[1744269698271,0.03,115.93,115.9,18.64964886]
[1744269698685,8.6559,115.93,115.9,18.64964886]
[1744269699391,8.6559,115.93,115.9,34.89563624]
[1744269700192,0.03,115.93,115.9,18.64964886]
[1744269700580,0.03,115.93,115.9,43.52333624]
[1744269700790,0.03,115.93,115.92,18.64964886]
[1744269702781,0.03,115.93,115.92,43.52223624]
[1744269703867,0.03,115.93,115.92,60.05254676]
[1744269706292,0.03,115.93,115.92,141.25254676]
[1744269706592,0.03,115.94,115.93,0.28432314]
[1744269706775,0.03,115.94,115.93,43.01995938]
[1744269707975,0.03,115.94,115.93,51.64575938]
[1744269709597,0.03,115.94,115.93,152.84575938]
[1744269709991,0.03,115.94,115.93,157.24167457]
[1744269710292,0.03,115.94,115.93,152.84575938]
[1744269710990,0.03,115.94,115.93,132.84575938]
[1744269712097,0.03,115.94,115.93,26.48964886]
[1744269714692,16.27598738,115.94,115.93,7.84]
[1744269715195,0.03,115.94,115.9,51.36363624]
[1744269715582,0.03,115.94,115.92,18.64964886]
[1744269717597,0.03,115.94,115.9,24.08598738]
[1744269717803,16.27598738,115.94,115.91,18.64964886]
[1744269717982,16.27598738,115.94,115.9,26.48964886]
[1744269718187,16.27598738,115.94,115.9,7.84]
[1744269718390,16.27598738,115.94,115.9,26.48964886]
[1744269719088,16.24598738,115.93,115.9,26.48964886]
[1744269719996,24.87258738,115.92,115.9,26.48964886]
[1744269720320,16.24598738,115.91,115.88,26.48964886]
[1744269720686,16.24598738,115.91,115.88,7.84]
[1744269720882,42.24598738,115.89,115.86,295.98]
[1744269721087,42.24598738,115.89,115.86,18.64964886]
[1744269721603,96.6126,115.92,115.86,16.24598738]
[1744269721805,16.24598738,115.91,115.88,18.64964886]
[1744269722608,24.87358738,115.91,115.88,18.64964886]
[1744269722905,6.486,115.92,115.89,18.64964886]
[1744269723082,31.35868738,115.92,115.88,18.64964886]
[1744269723709,15.1127,115.92,115.88,34.89563624]
[1744269724207,15.1127,115.92,115.88,43.52503624]
[1744269724384,15.1127,115.92,115.89,7.84]
[1744269725096,17.83838738,115.93,115.89,24.08598738]
[1744269725288,26.46428738,115.93,115.89,24.08598738]
[1744269726509,1.5924,115.93,115.91,18.64964886]
[1744269727202,10.2183,115.93,115.91,18.64964886]
[1744269727903,26.46428738,115.93,115.89,7.84]
[1744269728203,16.24598738,115.92,115.89,7.84]
[1744269728600,8.6273,115.91,115.89,7.84]
[1744269729916,24.87328738,115.91,115.89,7.84]
[1744269730087,16.24598738,115.9,115.89,7.84]
[1744269730412,16.24598738,115.9,115.87,18.64964886]
[1744269730798,8.6288,115.89,115.87,18.64964886]
[1744269733820,8.6288,115.89,115.86,7.78]
[1744269734025,8.6288,115.89,115.87,18.64964886]
[1744269734994,16.24598738,115.91,115.87,18.64964886]
[1744269735221,24.87398738,115.91,115.87,18.64964886]
[1744269735398,16.24598738,115.9,115.86,7.78]
[1744269735718,22.62798738,115.9,115.86,7.78]
[1744269736012,16.24598738,115.89,115.86,7.78]
[1744269736617,16.24598738,115.88,115.85,18.64964886]
[1744269736820,16.24598738,115.86,115.84,0.063]
[1744269737015,16.24598738,115.85,115.84,0.063]
[1744269738294,24.87778738,115.85,115.84,0.063]
[1744269740505,24.87728738,115.86,115.84,0.063]
[1744269740715,8.6313,115.86,115.84,0.063]
[1744269741391,16.24598738,115.87,115.84,0.063]
[1744269741612,97.74598738,115.88,115.84,0.063]
[1744269741816,16.24598738,115.87,115.84,0.063]
[1744269742403,16.24598738,115.86,115.84,0.063]
[1744269742801,24.87728738,115.86,115.84,0.063]
[1744269743731,16.24598738,115.85,115.84,0.063]
[1744269744502,24.87778738,115.85,115.84,0.063]
[1744269747026,16.24598738,115.85,115.84,0.063]
[1744269747319,24.87728738,115.86,115.84,0.063]
[1744269747523,16.24598738,115.85,115.84,0.063]
[1744269747719,24.87628738,115.87,115.84,0.063]
[1744269749126,26.0,115.85,115.84,0.063]
[1744269750352,106.37588738,115.88,115.84,0.063]
[1744269750521,81.5,115.88,115.85,18.64964886]
[1744269750834,90.1297,115.88,115.85,18.64964886]
[1744269751018,81.5,115.88,115.85,18.64964886]
[1744269751225,81.5,115.88,115.85,27.28144886]
[1744269751441,81.5,115.88,115.85,18.64964886]
[1744269751727,90.1297,115.88,115.85,18.64964886]
[1744269754107,81.5,115.88,115.85,27.28124886]
[1744269755210,81.5,115.88,115.85,18.64964886]
[1744269755211,90.1297,115.88,115.85,18.64964886]
[1744269755529,106.37568738,115.88,115.85,18.64964886]
[1744269756236,24.87568738,115.88,115.85,18.64964886]
[1744269756735,24.87568738,115.88,115.84,18.71264886]
[1744269757874,24.87628738,115.87,115.84,18.71264886]
[1744269758133,24.87628738,115.87,115.84,0.063]
[1744269758134,16.24598738,115.86,115.84,0.063]
[1744269759836,50.87778738,115.85,115.84,0.063]
[1744269760013,26.0,115.85,115.84,0.063]
[1744269760337,97.74598738,115.88,115.84,0.063]
[1744269761243,106.37568738,115.88,115.84,8.6955]
[1744269762030,26.37938738,115.89,115.85,18.64964886]
[1744269762529,24.87508738,115.89,115.85,18.64964886]
[1744269762844,24.87408738,115.9,115.85,34.89563624]
[1744269763047,90.1277,115.91,115.85,34.89563624]
[1744269763351,16.24598738,115.9,115.87,18.64964886]
[1744269763513,42.24598738,115.88,115.86,7.76]
[1744269763717,16.24598738,115.87,115.84,0.063]
[1744269764017,42.24598738,115.88,115.84,0.063]
[1744269764322,42.24598738,115.88,115.84,8.6955]
[1744269764739,42.24598738,115.88,115.85,18.64964886]
[1744269765041,26.0,115.88,115.85,18.64964886]
[1744269767040,50.87568738,115.88,115.85,18.64964886]
[1744269768532,1.5579,115.92,115.86,34.89563624]
[1744269768841,16.24598738,115.91,115.87,7.76]
[1744269769341,8.6277,115.91,115.88,18.64964886]
[1744269769553,24.87368738,115.91,115.88,18.64964886]
[1744269771517,16.24598738,115.9,115.87,7.76]
[1744269771942,16.24598738,115.89,115.87,7.76]
[1744269773626,24.87488738,115.89,115.87,7.76]
[1744269773829,8.6289,115.89,115.87,7.76]
[1744269774042,24.87488738,115.89,115.87,7.76]
[1744269777726,24.87488738,115.89,115.86,18.64964886]
[1744269779946,8.6289,115.89,115.86,18.64964886]
[1744269781026,24.87428738,115.9,115.86,18.64964886]
[1744269785248,10.40809065,115.9,115.86,18.64964886]
[1744269788258,8.6288,115.89,115.86,18.64964886]
[1744269789856,10.40809065,115.9,115.86,18.64964886]
[1744269790755,34.6289,115.89,115.86,18.64964886]
[1744269792371,10.40809065,115.91,115.87,18.64964886]
[1744269792559,6.1931,115.93,115.89,18.64964886]
[1744269792862,8.6258,115.93,115.89,19.03679065]
[1744269793228,19.06349065,115.94,115.89,26.77679065]
[1744269793435,19.06349065,115.94,115.9,10.40809065]
[1744269793848,19.06349065,115.94,115.89,16.3687]
[1744269794054,19.06349065,115.94,115.9,18.64964886]
[1744269794554,0.03,115.94,115.93,29.05773951]
[1744269794732,0.03,115.94,115.93,37.08206265]
[1744269795460,0.03,115.94,115.93,26.38964886]
[1744269795755,0.03,115.94,115.93,32.82175343]
[1744269796856,0.03,115.94,115.93,26.38964886]
[1744269797035,0.03,115.94,115.93,7.74]
[1744269797242,16.27141506,115.94,115.91,18.64964886]
[1744269797453,16.27141506,115.94,115.9,303.82]
[1744269797454,16.24141506,115.92,115.9,7.74]
[1744269797752,16.24141506,115.91,115.9,7.74]
[1744269797956,16.24141506,115.91,115.86,7.8457]
[1744269798160,16.24141506,115.88,115.84,16.4352]
[1744269798336,16.24141506,115.87,115.84,16.4352]
[1744269798536,16.24141506,115.87,115.84,7.803]
[1744269798939,24.87181506,115.87,115.84,7.803]
[1744269800333,16.24141506,115.87,115.84,7.803]
[1744269800735,90.1284,115.9,115.85,18.64964886]
[1744269800941,81.5,115.9,115.87,18.64964886]
[1744269801145,24.86941506,115.91,115.87,18.64964886]
[1744269801854,24.86941506,115.91,115.87,34.89106392]
[1744269802057,16.24141506,115.91,115.87,43.52066392]
[1744269802258,81.5,115.93,115.87,43.52066392]
[1744269802437,16.24141506,115.92,115.87,43.52066392]
[1744269803941,106.36761506,115.93,115.88,16.24141506]
[1744269804253,16.24141506,115.92,115.87,43.52066392]
[1744269804866,24.86891506,115.91,115.87,43.52066392]
[1744269805068,16.24141506,115.89,115.85,18.64964886]
[1744269805733,16.24141506,115.88,115.85,18.64964886]
[1744269806435,16.24141506,115.89,115.85,27.28124886]
[1744269806637,16.24141506,115.9,115.85,43.52266392]
[1744269806843,81.5,115.92,115.87,18.64964886]
[1744269807149,81.5,115.92,115.88,16.24141506]
[1744269807364,97.74141506,115.92,115.88,16.24141506]
[1744269807752,16.24141506,115.91,115.87,16.24141506]
[1744269807961,97.74141506,115.92,115.88,16.24141506]
[1744269808168,81.5,115.92,115.88,16.24141506]
[1744269808369,81.5,115.92,115.89,27.27844886]
[1744269808970,81.5,115.92,115.89,18.64964886]
[1744269811864,24.86741506,115.93,115.89,18.64964886]
[1744269812769,24.86731506,115.93,115.89,27.27824886]
[1744269812971,16.24141506,115.92,115.89,18.64964886]
[1744269814043,16.24141506,115.92,115.89,27.27844886]
[1744269814771,8.6551,115.94,115.89,27.27844886]
[1744269814961,16.24141506,115.93,115.89,27.27844886]
[1744269816558,24.86741506,115.93,115.89,27.27844886]
[1744269820390,8.626,115.93,115.89,27.27844886]
[1744269820577,16.24141506,115.92,115.89,18.64964886]
[1744269820771,16.24141506,115.92,115.89,27.27844886]
[1744269822378,16.24141506,115.9,115.85,7.74]
[1744269822579,16.24141506,115.87,115.85,7.74]
[1744269822892,1.82702314,115.9,115.84,0.063]
[1744269822893,16.24141506,115.86,115.84,0.063]
[1744269823057,42.24141506,115.86,115.84,0.063]
[1744269823259,16.24141506,115.85,115.84,0.063]
[1744269823559,42.24141506,115.86,115.84,0.063]
[1744269823761,50.87261506,115.86,115.84,0.063]
[1744269824956,16.24141506,115.85,115.84,0.063]
[1744269826584,24.87321506,115.85,115.84,0.063]
[1744269828280,34.6313,115.86,115.84,0.063]
[1744269828582,16.24141506,115.86,115.84,0.063]
[1744269828778,97.74141506,115.87,115.84,0.063]
[1744269828959,106.37191506,115.87,115.84,0.063]
[1744269829161,97.74141506,115.87,115.84,0.063]
[1744269829379,106.37191506,115.87,115.84,0.063]
[1744269830187,16.24141506,115.86,115.84,0.063]
[1744269832196,106.37191506,115.87,115.84,0.063]
[1744269834075,16.24141506,115.86,115.84,0.063]
[1744269835095,16.24141506,115.85,115.84,0.063]
[1744269835998,24.87321506,115.85,115.84,0.063]
[1744269836293,50.87321506,115.85,115.84,0.063]
[1744269837475,26.0,115.85,115.84,0.063]
[1744269838294,34.6318,115.85,115.84,0.063]
[1744269838473,50.87321506,115.85,115.84,0.063]
[1744269840386,26.0,115.85,115.84,0.063]
[1744269840992,90.1307,115.87,115.84,0.063]
[1744269841178,106.37211506,115.87,115.84,0.063]
[1744269843605,16.24141506,115.86,115.84,0.063]
[1744269843900,24.87261506,115.86,115.84,0.063]
[1744269844205,106.37211506,115.87,115.84,0.063]
[1744269845101,90.1307,115.87,115.84,0.063]
[1744269845310,16.24141506,115.86,115.84,0.063]
[1744269845798,42.24141506,115.85,115.84,0.063]
[1744269847108,50.87321506,115.85,115.84,0.063]
[1744269847940,42.24141506,115.85,115.84,0.063]
[1744269851008,50.87321506,115.85,115.84,0.063]
[1744269852614,106.37201506,115.87,115.84,0.063]
[1744269852799,16.24141506,115.86,115.84,0.063]
[1744269853821,24.87251506,115.86,115.84,0.063]
[1744269855201,16.24141506,115.85,115.84,0.063]
[1744269855917,24.87321506,115.85,115.84,0.063]
[1744269863321,16.24141506,115.85,115.84,0.063]
[1744269863622,24.87321506,115.85,115.84,0.063]
[1744269864599,16.24141506,115.85,115.84,0.063]
[1744269864800,24.87281506,115.86,115.84,0.063]